lending/lending_fUSD_20250719
["ID","MTS","AMOUNT","RATE_DAILY","PERIOD"]
[373210458,1752907848605,-480.0,0.00019397,2]
[373210459,1752907848614,-480.0,0.00019397,2]
[373210460,1752907848623,-565.24,0.00019397,2]
[373210461,1752907848632,-480.0,0.00019397,2]
[373210462,1752907848641,-480.0,0.00019397,2]
[373210463,1752907848651,-480.0,0.00019397,2]
[373210464,1752907848660,-480.0,0.00019397,2]
[373210465,1752907848670,-1259.57,0.00019397,2]
[373210466,1752907848679,-480.0,0.00019397,2]
[373210468,1752907848689,-480.0,0.00019397,2]
[373210469,1752907848698,-480.0,0.00019397,2]
[373210471,1752907848707,-480.0,0.00019397,2]
[373210473,1752907848717,-921.82,0.00019397,2]
[373210475,1752907848726,-480.0,0.00019397,2]
[373210477,1752907848736,-480.0,0.00019397,2]
[373210479,1752907848747,-480.0,0.00019397,2]
[373210481,1752907848764,-480.0,0.00019397,2]
[373210483,1752907848773,-480.0,0.00019397,2]
[373210485,1752907848783,-480.0,0.00019397,2]
[373210487,1752907848792,-573.09,0.00019397,2]
[373210489,1752907848801,-1365.62,0.00019397,2]
[373210491,1752907848811,-577.37,0.00019397,2]
[373210493,1752907848820,-480.0,0.00019397,2]
[373210495,1752907848829,-581.07,0.00019397,2]
[373210497,1752907848838,-827.19,0.00019397,2]
[373210499,1752907848849,-480.0,0.00019397,2]
[373210501,1752907848867,-4441.88,0.00019397,2]
[373210503,1752907848876,-637.96,0.00019397,2]
[373210505,1752907848886,-480.0,0.00019397,2]
[373210507,1752907848895,-584.34,0.00019397,2]
[373210509,1752907848907,-566.64,0.00019397,2]
[373210511,1752907848916,-480.0,0.00019397,2]
[373210513,1752907848925,-480.0,0.00019397,2]
[373210515,1752907848934,-480.0,0.00019397,2]
[373210517,1752907848944,-480.0,0.00019397,2]
[373210519,1752907848953,-897.36,0.00019397,2]
[373210521,1752907848962,-791.99,0.00019397,2]
[373210523,1752907848971,-1259.05,0.00019397,2]
[373210524,1752907848981,-480.0,0.00019397,2]
[373210527,1752907848991,-480.0,0.00019397,2]
[373210528,1752907849001,-480.0,0.00019397,2]
[373210530,1752907849011,-1164.26,0.00019397,2]
[373210532,1752907849020,-1795.43,0.00019397,2]
[373210534,1752907849029,-480.0,0.00019397,2]
[373210536,1752907849039,-480.0,0.00019397,2]
[373210538,1752907849048,-480.0,0.00019397,2]
[373210540,1752907849057,-480.0,0.00019397,2]
[373210542,1752907849066,-228.8,0.00019397,2]
[373210544,1752907849075,-480.0,0.00019397,2]
[373210546,1752907849085,-480.0,0.00019397,2]
[373210548,1752907849094,-540.38,0.00019397,2]
[373210550,1752907849104,-480.0,0.00019397,2]
[373210552,1752907849114,-669.7,0.00019397,2]
[373210554,1752907849123,-559.44852096,0.00019397,2]
[373210556,1752907849133,-1011.37,0.00019397,2]
[373210558,1752907849142,-480.0,0.00019397,2]
[373210559,1752907849152,-480.0,0.00019397,2]
[373210562,1752907849161,-480.0,0.00019397,2]
[373210563,1752907849171,-1288.17,0.00019397,2]
[373210565,1752907849180,-632.89,0.00019397,2]
[373210567,1752907849190,-835.27,0.00019397,2]
[373210569,1752907849199,-480.0,0.00019397,2]
[373210571,1752907849209,-480.0,0.00019397,2]
[373210573,1752907849219,-631.07,0.00019397,2]
[373210575,1752907849233,-480.0,0.00019397,2]
[373210577,1752907849243,-480.0,0.00019397,2]
[373210579,1752907849253,-536.6,0.00019397,2]
[373210581,1752907849263,-480.0,0.00019397,2]
[373210583,1752907849274,-480.0,0.00019397,2]
[373210585,1752907849283,-480.0,0.00019397,2]
[373210587,1752907849292,-480.0,0.00019397,2]
[373210589,1752907849302,-480.0,0.00019397,2]
[373210591,1752907849311,-571.22,0.00019397,2]
[373210593,1752907849320,-499.34,0.00019397,2]
[373210595,1752907849330,-480.0,0.00019397,2]
[373210597,1752907849339,-615.64,0.00019397,2]
[373210599,1752907849348,-480.0,0.00019397,2]
[373210601,1752907849358,-480.0,0.00019397,2]
[373210603,1752907849367,-507.11,0.00019397,2]
[373210605,1752907849377,-1223.95,0.00019397,2]
[373210607,1752907849387,-725.13,0.00019397,2]
[373210609,1752907849396,-798.17,0.00019397,2]
[373210611,1752907849405,-468.07355197,0.00019397,2]
[373210613,1752907849415,-480.0,0.00019397,2]
[373210615,1752907849424,-7391.1,0.00019397,2]
[373210617,1752907849434,-1220.62,0.00019397,2]
[373210619,1752907849443,-561.57,0.00019397,2]
[373210621,1752907849452,-965.98,0.00019397,2]
[373210623,1752907849462,-480.0,0.00019397,2]
[373210625,1752907849471,-996.17,0.00019397,2]
[373210627,1752907849480,-480.0,0.00019397,2]
[373210628,1752907849490,-480.0,0.00019397,2]
[373210630,1752907849500,-480.0,0.00019397,2]
[373210632,1752907849510,-875.35,0.00019397,2]
[373210634,1752907849519,-2076.63,0.00019397,2]
[373210636,1752907849528,-480.0,0.00019397,2]
[373210638,1752907849537,-480.0,0.00019397,2]
[373210640,1752907849547,-2971.88877301,0.00019398,2]
[373210642,1752907849556,-150.0,0.000194,2]
[373210644,1752907849565,-294.64241732,0.00019401,2]
[373210646,1752907849574,-4651.41019186,0.00019402,2]
[373210648,1752907849583,-771.23467135,0.00019406,2]
[373210650,1752907849592,-150.96,0.00019418,2]
[373210652,1752907849602,-771.23467135,0.00019419,2]
[373210654,1752907849611,-784.07504606,0.00019422,2]
[373210656,1752907849620,-200.0,0.00019426,2]
[373210657,1752907849630,-2971.88877301,0.00019427,2]
[373210659,1752907849639,-250.0,0.00019428,2]
[373210661,1752907849648,-150.0,0.00019428,2]
[373210663,1752907849658,-300.0,0.00019428,2]
[373210665,1752907849667,-2500.0,0.00019428,2]
[373210667,1752907849676,-1000.0,0.00019428,2]
[373210669,1752907849685,-2415.09,0.0001943,2]
[373210671,1752907849695,-2971.88877301,0.00019431,2]
[373210673,1752907849704,-200.0,0.00019431,2]
[373210675,1752907849714,-2889.97075009,0.0001944,2]
[373210677,1752907849724,-428.60386648,0.00019443,2]
[373210679,1752907849733,-771.23467135,0.00019444,2]
[373210681,1752907849743,-784.07504606,0.00019449,2]
[373210683,1752907849752,-2324.41296172,0.00019452,2]
[373210685,1752907849761,-2324.41296172,0.00019453,2]
[373210687,1752907849771,-784.07504606,0.00019457,2]
[373210689,1752907849780,-294.64241732,0.00019468,2]
[373210691,1752907849789,-428.60386648,0.0001947,2]
[373210693,1752907849801,-568.66820372,0.00019475,2]
[373210695,1752907849810,-4651.41019186,0.00019482,2]
[373210697,1752907849819,-200.0,0.00019483,2]
[373210699,1752907849829,-2324.41296172,0.0001949,2]
[373210701,1752907849838,-172.754,0.00019491,2]
[373210702,1752907849847,-3115.992,0.00019491,2]
[373210704,1752907849857,-4651.41019186,0.00019491,2]
[373210706,1752907849867,-2073.09310276,0.00019492,2]
[373210708,1752907849876,-406.232284,0.00019492,2]
[373210710,1752907849885,-568.66820372,0.00019493,2]
[373210712,1752907849894,-406.232284,0.00019494,2]
[373210714,1752907849903,-1201.35,0.00019506,2]
[373210716,1752907849913,-480.0,0.00019506,2]
[373210718,1752907849922,-480.0,0.00019506,2]
[373210720,1752907849931,-480.0,0.00019506,2]
[373210722,1752907849940,-480.0,0.00019506,2]
[373210724,1752907849950,-276.03518816,0.00019506,2]
[373210726,1752907849959,-526.05,0.00019506,2]
[373210728,1752907849968,-480.0,0.00019506,2]
[373210730,1752907849977,-480.0,0.00019506,2]
[373210732,1752907849986,-480.0,0.00019506,2]
[373210734,1752907849995,-480.0,0.00019506,2]
[373210736,1752907850005,-480.0,0.00019506,2]
[373210738,1752907850015,-480.0,0.00019506,2]
[373210740,1752907850025,-654.73,0.00019506,2]
[373210742,1752907850034,-480.0,0.00019506,2]
[373210744,1752907850044,-480.0,0.00019506,2]
[373210746,1752907850054,-480.0,0.00019506,2]
[373210748,1752907850063,-480.0,0.00019506,2]
[373210750,1752907850072,-597.85,0.00019506,2]
[373210752,1752907850083,-494.6,0.00019506,2]
[373210753,1752907850092,-480.0,0.00019506,2]
[373210755,1752907850102,-562.6,0.00019506,2]
[373210757,1752907850112,-614.38,0.00019506,2]
[373210760,1752907850121,-801.31,0.00019506,2]
[373210762,1752907850131,-480.0,0.00019506,2]
[373210763,1752907850141,-480.0,0.00019506,2]
[373210765,1752907850151,-480.0,0.00019506,2]
[373210767,1752907850161,-565.24,0.00019506,2]
[373210769,1752907850170,-480.0,0.00019506,2]
[373210771,1752907850180,-480.0,0.00019506,2]
[373210773,1752907850190,-480.0,0.00019506,2]
[373210787,1752907850321,-1259.57,0.00019506,2]
[373210789,1752907850330,-480.0,0.00019506,2]
[373210791,1752907850340,-480.0,0.00019506,2]
[373210793,1752907850349,-480.0,0.00019506,2]
[373210795,1752907850359,-480.0,0.00019506,2]
[373210797,1752907850369,-921.82,0.00019506,2]
[373210799,1752907850379,-480.0,0.00019506,2]
[373210801,1752907850395,-480.0,0.00019506,2]
[373210803,1752907850405,-480.0,0.00019506,2]
[373210805,1752907850414,-480.0,0.00019506,2]
[373210807,1752907850424,-480.0,0.00019506,2]
[373210809,1752907850434,-480.0,0.00019506,2]
[373210811,1752907850444,-573.09,0.00019506,2]
[373210813,1752907850453,-1365.62,0.00019506,2]
[373210815,1752907850463,-577.37,0.00019506,2]
[373210817,1752907850473,-480.0,0.00019506,2]
[373210819,1752907850483,-581.07,0.00019506,2]
[373210821,1752907850493,-827.19,0.00019506,2]
[373210823,1752907850502,-480.0,0.00019506,2]
[373210825,1752907850511,-4441.88,0.00019506,2]
[373210827,1752907850522,-637.96,0.00019506,2]
[373210829,1752907850531,-480.0,0.00019506,2]
[373210831,1752907850541,-584.34,0.00019506,2]
[373210833,1752907850551,-566.64,0.00019506,2]
[373210835,1752907850560,-480.0,0.00019506,2]
[373210837,1752907850570,-480.0,0.00019506,2]
[373210839,1752907850579,-480.0,0.00019506,2]
[373210841,1752907850589,-897.36,0.00019506,2]
[373210843,1752907850599,-791.99,0.00019506,2]
[373210845,1752907850608,-480.0,0.00019506,2]
[373210847,1752907850618,-1259.05,0.00019506,2]
[373210849,1752907850628,-480.0,0.00019506,2]
[373210851,1752907850637,-480.0,0.00019506,2]
[373210853,1752907850646,-480.0,0.00019506,2]
[373210855,1752907850655,-1164.26,0.00019506,2]
[373210857,1752907850665,-1795.43,0.00019506,2]
[373210859,1752907850674,-480.0,0.00019506,2]
[373210860,1752907850684,-480.0,0.00019506,2]
[373210862,1752907850693,-480.0,0.00019506,2]
[373210865,1752907850703,-480.0,0.00019506,2]
[373210867,1752907850713,-480.0,0.00019506,2]
[373210869,1752907850723,-480.0,0.00019506,2]
[373210871,1752907850733,-540.38,0.00019506,2]
[373210872,1752907850743,-480.0,0.00019506,2]
[373210874,1752907850753,-669.7,0.00019506,2]
[373210877,1752907850763,-1011.37,0.00019506,2]
[373210879,1752907850773,-480.0,0.00019506,2]
[373210881,1752907850783,-480.0,0.00019506,2]
[373210883,1752907850793,-480.0,0.00019506,2]
[373210885,1752907850803,-1288.17,0.00019506,2]
[373210887,1752907850812,-632.89,0.00019506,2]
[373210889,1752907850821,-835.27,0.00019506,2]
[373210891,1752907850831,-480.0,0.00019506,2]
[373210893,1752907850841,-480.0,0.00019506,2]
[373210894,1752907850851,-631.07,0.00019506,2]
[373210896,1752907850861,-480.0,0.00019506,2]
[373210898,1752907850871,-480.0,0.00019506,2]
[373210900,1752907850880,-536.6,0.00019506,2]
[373210902,1752907850891,-480.0,0.00019506,2]
[373210904,1752907850901,-480.0,0.00019506,2]
[373210906,1752907850911,-480.0,0.00019506,2]
[373210908,1752907850920,-480.0,0.00019506,2]
[373210910,1752907850935,-571.22,0.00019506,2]
[373210912,1752907850944,-480.0,0.00019506,2]
[373210914,1752907850954,-499.34,0.00019506,2]
[373210916,1752907850964,-480.0,0.00019506,2]
[373210918,1752907850973,-615.64,0.00019506,2]
[373210920,1752907850983,-480.0,0.00019506,2]
[373210922,1752907850994,-480.0,0.00019506,2]
[373210924,1752907851003,-507.11,0.00019506,2]
[373210926,1752907851013,-1223.95,0.00019506,2]
[373210928,1752907851022,-725.13,0.00019506,2]
[373210930,1752907851031,-798.17,0.00019506,2]
[373210932,1752907851041,-480.0,0.00019506,2]
[373210934,1752907851051,-1220.62,0.00019506,2]
[373210936,1752907851060,-561.57,0.00019506,2]
[373210938,1752907851069,-7391.1,0.00019506,2]
[373210940,1752907851079,-965.98,0.00019506,2]
[373210942,1752907851088,-480.0,0.00019506,2]
[373210944,1752907851098,-996.17,0.00019506,2]
[373210946,1752907851107,-480.0,0.00019506,2]
[373210948,1752907851116,-480.0,0.00019506,2]
[373210950,1752907851127,-480.0,0.00019506,2]
[373210952,1752907851136,-875.35,0.00019506,2]
[373210954,1752907851146,-480.0,0.00019506,2]
[373210956,1752907851155,-2076.63,0.00019506,2]
[373210958,1752907851165,-480.0,0.00019506,2]
[373210960,1752907851175,-391.74426504,0.00019506,2]
[373210962,1752907851184,-150.0,0.00019527,2]
[373210963,1752907851194,-2415.09,0.0001954,2]
[373210964,1752907851203,-41427.25920936,0.0001954,2]
[373210965,1752907851212,-1201.35,0.00019616,2]
[373210966,1752907851223,-480.0,0.00019616,2]
[373210967,1752907851234,-480.0,0.00019616,2]
[373210968,1752907851245,-480.0,0.00019616,2]
[373210969,1752907851255,-480.0,0.00019616,2]
[373210970,1752907851264,-480.0,0.00019616,2]
[373210971,1752907851274,-480.0,0.00019616,2]
[373210972,1752907851284,-480.0,0.00019616,2]
[373210974,1752907851294,-480.0,0.00019616,2]
[373210976,1752907851305,-480.0,0.00019616,2]
[373210978,1752907851315,-480.0,0.00019616,2]
[373210980,1752907851325,-654.73,0.00019616,2]
[373210982,1752907851335,-480.0,0.00019616,2]
[373210984,1752907851344,-480.0,0.00019616,2]
[373210986,1752907851354,-480.0,0.00019616,2]
[373210988,1752907851363,-480.0,0.00019616,2]
[373210990,1752907851373,-597.85,0.00019616,2]
[373210992,1752907851382,-494.6,0.00019616,2]
[373210994,1752907851391,-480.0,0.00019616,2]
[373210996,1752907851401,-562.6,0.00019616,2]
[373210998,1752907851411,-614.38,0.00019616,2]
[373211000,1752907851420,-801.31,0.00019616,2]
[373211002,1752907851430,-480.0,0.00019616,2]
[373211004,1752907851440,-480.0,0.00019616,2]
[373211006,1752907851450,-480.0,0.00019616,2]
[373211008,1752907851460,-565.24,0.00019616,2]
[373211010,1752907851470,-480.0,0.00019616,2]
[373211012,1752907851479,-407.72690064,0.00019616,2]
[373211014,1752907851489,-480.0,0.00019616,2]
[373211016,1752907851499,-1259.57,0.00019616,2]
[373211018,1752907851509,-480.0,0.00019616,2]
[373211020,1752907851518,-480.0,0.00019616,2]
[373211022,1752907851528,-480.0,0.00019616,2]
[373211024,1752907851538,-480.0,0.00019616,2]
[373211026,1752907851547,-921.82,0.00019616,2]
[373211028,1752907851557,-480.0,0.00019616,2]
[373211030,1752907851567,-480.0,0.00019616,2]
[373211032,1752907851576,-309.89756491,0.00019616,2]
[373211034,1752907851586,-480.0,0.00019616,2]
[373211036,1752907851595,-480.0,0.00019616,2]
[373211038,1752907851605,-480.0,0.00019616,2]
[373211040,1752907851615,-573.09,0.00019616,2]
[373211042,1752907851624,-1365.62,0.00019616,2]
[373211044,1752907851634,-577.37,0.00019616,2]
[373211046,1752907851645,-480.0,0.00019616,2]
[373211048,1752907851655,-581.07,0.00019616,2]
[373211050,1752907851665,-827.19,0.00019616,2]
[373211052,1752907851674,-189.50107154,0.00019616,2]
[373211054,1752907851683,-4441.88,0.00019616,2]
[373211056,1752907851693,-637.96,0.00019616,2]
[373211058,1752907851702,-480.0,0.00019616,2]
[373211060,1752907851712,-584.34,0.00019616,2]
[373211062,1752907851722,-566.64,0.00019616,2]
[373211064,1752907851731,-480.0,0.00019616,2]
[373211066,1752907851742,-480.0,0.00019616,2]
[373211068,1752907851752,-480.0,0.00019616,2]
[373211070,1752907851761,-897.36,0.00019616,2]
[373211072,1752907851771,-791.99,0.00019616,2]
[373211074,1752907851780,-480.0,0.00019616,2]
[373211076,1752907851789,-1259.05,0.00019616,2]
[373211078,1752907851799,-480.0,0.00019616,2]
[373211080,1752907851810,-480.0,0.00019616,2]
[373211082,1752907851820,-480.0,0.00019616,2]
[373211084,1752907851831,-1164.26,0.00019616,2]
[373211086,1752907851840,-1795.43,0.00019616,2]
[373211088,1752907851849,-480.0,0.00019616,2]
[373211090,1752907851858,-480.0,0.00019616,2]
[373211092,1752907851867,-159.70172742,0.00019616,2]
[373211094,1752907851876,-480.0,0.00019616,2]
[373211096,1752907851885,-480.0,0.00019616,2]
[373211098,1752907851895,-480.0,0.00019616,2]
[373211100,1752907851903,-480.0,0.00019616,2]
[373211102,1752907851914,-669.7,0.00019616,2]
[373211104,1752907851923,-540.38,0.00019616,2]
[373211106,1752907851932,-1011.37,0.00019616,2]
[373211108,1752907851941,-480.0,0.00019616,2]
[373211110,1752907851951,-480.0,0.00019616,2]
[373211112,1752907851960,-480.0,0.00019616,2]
[373211114,1752907851970,-1288.17,0.00019616,2]
[373211116,1752907851980,-632.89,0.00019616,2]
[373211118,1752907851990,-835.27,0.00019616,2]
[373211120,1752907852000,-480.0,0.00019616,2]
[373211122,1752907852009,-480.0,0.00019616,2]
[373211124,1752907852019,-631.07,0.00019616,2]
[373211126,1752907852028,-480.0,0.00019616,2]
[373211128,1752907852038,-480.0,0.00019616,2]
[373211130,1752907852047,-536.6,0.00019616,2]
[373211132,1752907852057,-480.0,0.00019616,2]
[373211134,1752907852067,-480.0,0.00019616,2]
[373211136,1752907852076,-480.0,0.00019616,2]
[373211137,1752907852086,-480.0,0.00019616,2]
[373211140,1752907852095,-571.22,0.00019616,2]
[373211142,1752907852105,-480.0,0.00019616,2]
[373211144,1752907852114,-499.34,0.00019616,2]
[373211146,1752907852124,-480.0,0.00019616,2]
[373211148,1752907852133,-615.64,0.00019616,2]
[373211150,1752907852143,-480.0,0.00019616,2]
[373211151,1752907852154,-480.0,0.00019616,2]
[373211154,1752907852163,-507.11,0.00019616,2]
[373211156,1752907852173,-1223.95,0.00019616,2]
[373211158,1752907852182,-725.13,0.00019616,2]
[373211160,1752907852192,-798.17,0.00019616,2]
[373211161,1752907852201,-480.0,0.00019616,2]
[373211164,1752907852211,-1220.62,0.00019616,2]
[373211166,1752907852221,-561.57,0.00019616,2]
[373211168,1752907852233,-7391.1,0.00019616,2]
[373211169,1752907852243,-965.98,0.00019616,2]
[373211171,1752907852252,-480.0,0.00019616,2]
[373211173,1752907852262,-996.17,0.00019616,2]
[373211175,1752907852271,-480.0,0.00019616,2]
[373211177,1752907852281,-480.0,0.00019616,2]
[373211179,1752907852290,-480.0,0.00019616,2]
[373211182,1752907852302,-875.35,0.00019616,2]
[373211183,1752907852312,-480.0,0.00019616,2]
[373211185,1752907852321,-2076.63,0.00019616,2]
[373211187,1752907852331,-480.0,0.00019616,2]
[373211190,1752907852340,-150.0,0.00019617,2]
[373211192,1752907852350,-20000.0,0.00019634,2]
[373211193,1752907852360,-500.0,0.00019646,2]
[373211196,1752907852370,-500.0,0.00019646,2]
[373211198,1752907852379,-500.0,0.00019646,2]
[373211199,1752907852389,-502.66574435,0.00019646,2]
[373211201,1752907852398,-150.0,0.00019647,2]
[373211204,1752907852408,-674.0,0.00019647,2]
[373211206,1752907852417,-216.0,0.00019647,2]
[373211208,1752907852427,-200.0,0.00019647,2]
[373211209,1752907852437,-150.0,0.00019647,2]
[373211212,1752907852447,-150.0,0.00019647,2]
[373211214,1752907852456,-500.0,0.00019647,2]
[373211242,1752907852466,-150.0,0.00019647,2]
[373211245,1752907852737,-300.0,0.00019647,2]
[373211247,1752907852748,-150.0,0.00019648,2]
[373211249,1752907852758,-150.0,0.00019648,2]
[373211251,1752907852767,-150.0,0.00019648,2]
[373211253,1752907852777,-150.0,0.00019648,2]
[373211255,1752907852786,-200.0,0.00019648,2]
[373211257,1752907852795,-150.0,0.00019648,2]
[373211259,1752907852805,-200.0,0.00019648,2]
[373211261,1752907852814,-500.0,0.00019648,2]
[373211263,1752907852824,-150.0,0.00019648,2]
[373211265,1752907852833,-200.0,0.00019648,2]
[373211267,1752907852842,-150.0,0.00019648,2]
[373211269,1752907852852,-500.0,0.00019648,2]
[373211271,1752907852862,-200.0,0.00019648,2]
[373211273,1752907852872,-205.52348752,0.00019648,2]
[373211275,1752907852881,-500.0,0.00019648,2]
[373211277,1752907852891,-150.0,0.00019648,2]
[373211279,1752907852900,-500.0,0.00019648,2]
[373211281,1752907852910,-150.0,0.00019648,2]
[373211283,1752907852919,-500.0,0.00019676,2]
[373211285,1752907852930,-200.0,0.00019678,2]
[373211287,1752907852939,-5888.0,0.0001968,2]
[373211289,1752907852948,-500.0,0.00019687,2]
[373211291,1752907852958,-214.4579557,0.00019687,2]
[373211293,1752907852968,-500.0,0.00019687,2]
[373211295,1752907852978,-319.52377889,0.00019697,2]
[373211297,1752907852988,-2415.09,0.000197,2]
[373211299,1752907852997,-164.91180135,0.00019703,2]
[373211301,1752907853007,-502.82185022,0.00019703,2]
[373211303,1752907853016,-500.0,0.00019703,2]
[373211305,1752907853026,-321.65,0.00019703,2]
[373211307,1752907853036,-150.0,0.00019709,2]
[373211309,1752907853046,-5127.21,0.00019725,2]
[373211311,1752907853056,-1201.35,0.00019726,2]
[373211313,1752907853066,-480.0,0.00019726,2]
[373211315,1752907853075,-234.97209272,0.00019726,2]
[373211317,1752907853085,-480.0,0.00019726,2]
[373211319,1752907853094,-231.62178334,0.00019726,2]
[373211321,1752907853104,-543.27,0.00019726,2]
[373211323,1752907853114,-480.0,0.00019726,2]
[373211325,1752907853123,-480.0,0.00019726,2]
[373211327,1752907853132,-480.0,0.00019726,2]
[373211329,1752907853142,-480.0,0.00019726,2]
[373211331,1752907853151,-654.73,0.00019726,2]
[373211333,1752907853161,-480.0,0.00019726,2]
[373211334,1752907853170,-480.0,0.00019726,2]
[373211335,1752907853180,-480.0,0.00019726,2]
[373211336,1752907853189,-480.0,0.00019726,2]
[373211337,1752907853199,-480.0,0.00019726,2]
[373211338,1752907853209,-597.85,0.00019726,2]
[373211339,1752907853219,-494.6,0.00019726,2]
[373211340,1752907853233,-480.0,0.00019726,2]
[373211341,1752907853242,-562.6,0.00019726,2]
[373211342,1752907853252,-614.38,0.00019726,2]
[373211343,1752907853263,-801.31,0.00019726,2]
[373211344,1752907853272,-480.0,0.00019726,2]
[373211345,1752907853282,-480.0,0.00019726,2]
[373211346,1752907853292,-480.0,0.00019726,2]
[373211347,1752907853302,-565.24,0.00019726,2]
[373211348,1752907853312,-480.0,0.00019726,2]
[373211349,1752907853322,-480.0,0.00019726,2]
[373211350,1752907853331,-1259.57,0.00019726,2]
[373211351,1752907853340,-480.0,0.00019726,2]
[373211352,1752907853350,-480.0,0.00019726,2]
[373211353,1752907853360,-480.0,0.00019726,2]
[373211354,1752907853369,-480.0,0.00019726,2]
[373211356,1752907853379,-921.82,0.00019726,2]
[373211358,1752907853388,-480.0,0.00019726,2]
[373211360,1752907853399,-480.0,0.00019726,2]
[373211362,1752907853408,-480.0,0.00019726,2]
[373211364,1752907853418,-480.0,0.00019726,2]
[373211366,1752907853428,-480.0,0.00019726,2]
[373211368,1752907853438,-573.09,0.00019726,2]
[373211370,1752907853448,-1365.62,0.00019726,2]
[373211372,1752907853457,-577.37,0.00019726,2]
[373211374,1752907853467,-480.0,0.00019726,2]
[373211376,1752907853477,-581.07,0.00019726,2]
[373211378,1752907853487,-827.19,0.00019726,2]
[373211380,1752907853496,-4441.88,0.00019726,2]
[373211382,1752907853505,-480.0,0.00019726,2]
[373211384,1752907853515,-637.96,0.00019726,2]
[373211386,1752907853524,-584.34,0.00019726,2]
[373211388,1752907853535,-566.64,0.00019726,2]
[373211390,1752907853545,-480.0,0.00019726,2]
[373211392,1752907853554,-480.0,0.00019726,2]
[373211394,1752907853564,-480.0,0.00019726,2]
[373211396,1752907853574,-897.36,0.00019726,2]
[373211398,1752907853584,-791.99,0.00019726,2]
[373211400,1752907853594,-480.0,0.00019726,2]
[373211402,1752907853605,-1259.05,0.00019726,2]
[373211404,1752907853615,-480.0,0.00019726,2]
[373211406,1752907853625,-480.0,0.00019726,2]
[373211408,1752907853635,-480.0,0.00019726,2]
[373211410,1752907853645,-1164.26,0.00019726,2]
[373211412,1752907853655,-1795.43,0.00019726,2]
[373211414,1752907853666,-480.0,0.00019726,2]
[373211416,1752907853676,-510.31266279,0.00019726,2]
[373211418,1752907853686,-480.0,0.00019726,2]
[373211420,1752907853695,-480.0,0.00019726,2]
[373211422,1752907853706,-480.0,0.00019726,2]
[373211424,1752907853716,-480.0,0.00019726,2]
[373211426,1752907853726,-669.7,0.00019726,2]
[373211427,1752907853736,-540.38,0.00019726,2]
[373211428,1752907853745,-1011.37,0.00019726,2]
[373211429,1752907853754,-480.0,0.00019726,2]
[373211430,1752907853764,-480.0,0.00019726,2]
[373211431,1752907853775,-480.0,0.00019726,2]
[373211432,1752907853785,-1288.17,0.00019726,2]
[373211433,1752907853794,-632.89,0.00019726,2]
[373211434,1752907853804,-835.27,0.00019726,2]
[373211435,1752907853813,-480.0,0.00019726,2]
[373211436,1752907853823,-480.0,0.00019726,2]
[373211438,1752907853832,-631.07,0.00019726,2]